fUSD/lending_fUSD_20251122
["ID","MTS","AMOUNT","RATE_DAILY","PERIOD"]
[394653659,1763818241907,-1905.66599118,0.00016986,2]
[394653660,1763818241918,-1366.51099998,0.00016986,2]
[394653671,1763818244741,-1611.75160322,0.00016012,2]
[394653672,1763818244753,-101.67010678,0.00016986,2]
[394653678,1763818246182,-110719.56203896,0.00016986,2]
[394653679,1763818246192,-1667.8840569,0.00016994,2]
[394653680,1763818246202,-151.0,0.00016994,2]
[394653681,1763818246211,-151.0,0.00016994,2]
[394653682,1763818246229,-151.0,0.00016994,2]
[394653683,1763818246241,-165.423288,0.00016994,2]
[394653685,1763818246252,-165.423288,0.00016994,2]
[394653687,1763818246261,-165.423288,0.00016994,2]
[394653689,1763818246271,-165.423288,0.00016994,2]
[394653691,1763818246281,-2193.6004416,0.00016994,2]
[394653693,1763818246290,-500.0,0.00016999,2]
[394653694,1763818246299,-151.0,0.00016999,2]
[394653697,1763818246310,-153.55626,0.00016999,2]
[394653698,1763818246320,-151.0,0.00016999,2]
[394653699,1763818246331,-151.0,0.00016999,2]
[394653700,1763818246341,-155.73897,0.00016999,2]
[394653701,1763818246351,-151.0,0.00016999,2]
[394653702,1763818246361,-240.669812,0.00016999,2]
[394653703,1763818246371,-151.0,0.00016999,2]
[394653704,1763818246381,-454.909301,0.00016999,2]
[394653705,1763818246391,-454.909301,0.00016999,2]
[394653706,1763818246400,-454.909301,0.00016999,2]
[394653707,1763818246410,-454.909301,0.00016999,2]
[394653708,1763818246419,-150.0,0.00016999,2]
[394653709,1763818246429,-200.0,0.00016999,2]
[394653710,1763818246438,-3220.0,0.00017,2]
[394653711,1763818246448,-432108.01157715,0.00017,2]
[394653712,1763818246464,-1634.2626304,0.00017,2]
[394653713,1763818246482,-692.69947159,0.00017,2]
[394653764,1763818324111,169.41,0.00013233,2]
[394653765,1763818397173,200.0,0.00013127,2]
[394653840,1763819000481,200.0,0.00013022,2]
[394653842,1763819138952,448.21,0.00013699,2]
[394653861,1763819432371,-823.1,0.00015129,2]
[394653862,1763819432383,-33.826,0.00015129,2]
[394653863,1763819432392,-177.56944993,0.00015129,2]
[394653864,1763819432401,-300.0,0.00015337,2]
[394653865,1763819432410,-60329.84596609,0.00015338,2]
[394653866,1763819432421,-15941.07355351,0.00015338,2]
[394653867,1763819432471,-1337.0,0.00015338,2]
[394653870,1763819438266,-309.54331191,0.00015338,2]
[394653871,1763819438332,-3307.91099469,0.00015338,2]
[394653872,1763819438344,-2097.2,0.00015338,2]
[394653873,1763819438355,-9250.64,0.00015338,2]
[394653941,1763819440359,-760.2065738,0.00015338,2]
[394653943,1763819440369,-165.29399905,0.00015421,2]
[394653945,1763819440380,-167.94294207,0.00015421,2]
[394653947,1763819440389,-1128.22612229,0.00015421,2]
[394653949,1763819440398,-773.00472776,0.00015437,2]
[394653951,1763819440407,-566.38026355,0.00015521,2]
[394653953,1763819440416,-9617.15,0.00015621,2]
[394653955,1763819440425,-1128.22612225,0.00015696,2]
[394653957,1763819440434,-566.38026353,0.00015785,2]
[394653959,1763819440443,-1128.22612225,0.00015972,2]
[394653961,1763819440452,-566.38026353,0.0001605,2]
[394653963,1763819440461,-200.0,0.0001612,2]
[394653965,1763819440470,-481.42,0.00016223,2]
[394653967,1763819440479,-1128.22612225,0.00016247,2]
[394653969,1763819440489,-566.38026353,0.00016314,2]
[394653971,1763819440498,-1000.0,0.00016337,2]
[394653973,1763819440507,-500.0,0.00016438,2]
[394653975,1763819440515,-500.0,0.00016438,2]
[394653977,1763819440525,-500.0,0.00016438,2]
[394653979,1763819440534,-642.86,0.00016438,2]
[394653981,1763819440543,-400.24262135,0.00016438,2]
[394653983,1763819440552,-500.0,0.00016438,2]
[394653985,1763819440561,-500.0,0.00016438,2]
[394653987,1763819440570,-500.0,0.00016438,2]
[394653989,1763819440578,-500.0,0.00016438,2]
[394653991,1763819440587,-500.0,0.00016438,2]
[394653992,1763819440596,-500.0,0.00016438,2]
[394653993,1763819440605,-500.0,0.00016438,2]
[394653994,1763819440614,-500.0,0.00016438,2]
[394653995,1763819440624,-500.0,0.00016438,2]
[394653996,1763819440633,-500.0,0.00016438,2]
[394653997,1763819440643,-500.0,0.00016438,2]
[394653998,1763819440653,-521.78839333,0.00016438,2]
[394653999,1763819440662,-504.1,0.00016438,2]
[394654000,1763819440671,-300.0,0.00016438,2]
[394654001,1763819440681,-500.0,0.00016438,2]
[394654002,1763819440690,-500.0,0.00016438,2]
[394654004,1763819440699,-500.0,0.00016438,2]
[394654005,1763819440708,-500.0,0.00016438,2]
[394654006,1763819440718,-500.0,0.00016438,2]
[394654007,1763819440726,-500.0,0.00016438,2]
[394654008,1763819440736,-500.0,0.00016438,2]
[394654009,1763819440745,-500.0,0.00016438,2]
[394654010,1763819440754,-500.0,0.00016438,2]
[394654011,1763819440763,-500.0,0.00016438,2]
[394654012,1763819440773,-500.0,0.00016438,2]
[394654013,1763819440784,-588.58,0.00016438,2]
[394654014,1763819440794,-500.0,0.00016438,2]
[394654015,1763819440804,-500.0,0.00016438,2]
[394654016,1763819440814,-500.0,0.00016438,2]
[394654017,1763819440823,-500.0,0.00016438,2]
[394654018,1763819440832,-500.0,0.00016438,2]
[394654019,1763819440841,-500.0,0.00016438,2]
[394654020,1763819440850,-500.0,0.00016438,2]
[394654021,1763819440860,-500.0,0.00016438,2]
[394654022,1763819440869,-500.0,0.00016438,2]
[394654023,1763819440878,-500.0,0.00016438,2]
[394654024,1763819440887,-500.0,0.00016438,2]
[394654025,1763819440897,-500.0,0.00016438,2]
[394654026,1763819440906,-500.0,0.00016438,2]
[394654027,1763819440914,-500.0,0.00016438,2]
[394654028,1763819440924,-500.0,0.00016438,2]
[394654029,1763819440933,-500.0,0.00016438,2]
[394654030,1763819440942,-500.0,0.00016438,2]
[394654031,1763819440951,-1118.37,0.00016438,2]
[394654032,1763819440960,-500.0,0.00016438,2]
[394654033,1763819440968,-500.0,0.00016438,2]
[394654034,1763819440977,-500.0,0.00016438,2]
[394654035,1763819440986,-563.52,0.00016438,2]
[394654036,1763819440995,-500.0,0.00016438,2]
[394654037,1763819441003,-500.0,0.00016438,2]
[394654038,1763819441012,-500.0,0.00016438,2]
[394654039,1763819441021,-500.0,0.00016438,2]
[394654040,1763819441030,-500.0,0.00016438,2]
[394654041,1763819441039,-201.01,0.00016438,2]
[394654042,1763819441048,-999.0,0.00016517,3]
[394654043,1763819441058,-1128.22612225,0.00016523,2]
[394654044,1763819441067,-566.38026353,0.00016578,2]
[394654045,1763819441077,-500.0,0.00016712,2]
[394654046,1763819441088,-500.0,0.00016712,2]
[394654047,1763819441099,-500.0,0.00016712,2]
[394654048,1763819441109,-642.86,0.00016712,2]
[394654049,1763819441118,-500.0,0.00016712,2]
[394654050,1763819441128,-500.0,0.00016712,2]
[394654051,1763819441137,-500.0,0.00016712,2]
[394654052,1763819441146,-500.0,0.00016712,2]
[394654053,1763819441154,-500.0,0.00016712,2]
[394654054,1763819441163,-500.0,0.00016712,2]
[394654055,1763819441172,-190.41,0.00016712,2]
[394654056,1763819441181,-500.0,0.00016712,2]
[394654057,1763819441189,-253.02,0.00016712,2]
[394654058,1763819441198,-500.0,0.00016712,2]
[394654059,1763819441207,-500.0,0.00016712,2]
[394654060,1763819441216,-500.0,0.00016712,2]
[394654061,1763819441224,-500.0,0.00016712,2]
[394654062,1763819441233,-500.0,0.00016712,2]
[394654063,1763819441242,-259.94737467,0.00016712,2]
[394654064,1763819441251,-500.0,0.00016712,2]
[394654065,1763819441260,-500.0,0.00016712,2]
[394654066,1763819441270,-500.0,0.00016712,2]
[394654067,1763819441278,-500.0,0.00016712,2]
[394654068,1763819441287,-1118.37,0.00016712,2]
[394654069,1763819441296,-500.0,0.00016712,2]
[394654070,1763819441305,-500.0,0.00016712,2]
[394654071,1763819441314,-500.0,0.00016712,2]
[394654072,1763819441323,-500.0,0.00016712,2]
[394654073,1763819441332,-420.0,0.0001678,2]
[394654074,1763819441341,-1128.22612225,0.00016798,2]
[394654075,1763819441350,-566.38026353,0.00016843,2]
[394654076,1763819441359,-162.0,0.000169,2]
[394654077,1763819441367,-229.55,0.00016902,2]
[394654078,1763819441377,-546.30951378,0.00016986,2]
[394654079,1763819441386,-500.0,0.00016986,2]
[394654080,1763819441394,-195.4114097,0.00016986,2]
[394654081,1763819441403,-642.86,0.00016986,2]
[394654082,1763819441412,-500.0,0.00016986,2]
[394654083,1763819441421,-500.80437399,0.00016986,2]
[394654084,1763819441430,-500.0,0.00016986,2]
[394654085,1763819441439,-500.0,0.00016986,2]
[394654086,1763819441449,-500.0,0.00016986,2]
[394654087,1763819441459,-500.0,0.00016986,2]
[394654088,1763819441469,-500.0,0.00016986,2]
[394654089,1763819441478,-339.63191572,0.00016986,2]
[394654090,1763819441489,-500.0,0.00016986,2]
[394654091,1763819441500,-482.39,0.00016986,2]
[394654092,1763819441509,-500.0,0.00016986,2]
[394654093,1763819441518,-500.0,0.00016986,2]
[394654094,1763819441527,-500.0,0.00016986,2]
[394654095,1763819441536,-500.0,0.00016986,2]
[394654096,1763819441545,-546.65888768,0.00016986,2]
[394654097,1763819441554,-1118.37,0.00016986,2]
[394654098,1763819441563,-333.0,0.00016986,2]
[394654099,1763819441572,-500.0,0.00016986,2]
[394654100,1763819441581,-500.0,0.00016986,2]
[394654101,1763819441591,-500.0,0.00016986,2]
[394654102,1763819441602,-39049.83386993,0.00017,2]
[394654103,1763819441612,-292.08420966,0.00017,2]
[394654104,1763819441622,-2000.0,0.00017,2]
[394654105,1763819441631,-200.0,0.00017,2]
[394654106,1763819441641,-200.0,0.00017,2]
[394654107,1763819441650,-1224.0,0.00017027,2]
[394654108,1763819441660,-1224.0,0.00017053,2]
[394654109,1763819441669,-1128.22612225,0.00017074,2]
[394654110,1763819441678,-566.38026353,0.00017107,2]
[394654111,1763819441688,-1224.0,0.00017131,2]
[394654112,1763819441697,-200.0,0.0001717,2]
[394654113,1763819441707,-500.0,0.0001726,2]
[394654114,1763819441717,-642.86,0.0001726,2]
[394654115,1763819441727,-500.0,0.0001726,2]
[394654116,1763819441737,-490.5356369,0.0001726,2]
[394654117,1763819441747,-500.0,0.0001726,2]
[394654118,1763819441759,-500.0,0.0001726,2]
[394654119,1763819441772,-500.0,0.0001726,2]
[394654120,1763819441781,-500.0,0.0001726,2]
[394654121,1763819441791,-500.0,0.0001726,2]
[394654122,1763819441802,-500.0,0.0001726,2]
[394654123,1763819441812,-500.0,0.0001726,2]
[394654124,1763819441823,-500.0,0.0001726,2]
[394654125,1763819441833,-500.0,0.0001726,2]
[394654126,1763819441842,-1118.37,0.0001726,2]
[394654127,1763819441851,-293.15471232,0.0001726,2]
[394654128,1763819441859,-500.0,0.0001726,2]
[394654129,1763819441868,-500.0,0.0001726,2]
[394654130,1763819441878,-1224.0,0.00017303,2]
[394654131,1763819441887,-166.66,0.00017315,2]
[394654132,1763819441897,-200.0,0.00017342,2]
[394654133,1763819441906,-1128.22612225,0.00017349,2]
[394654134,1763819441915,-566.38026353,0.00017371,2]
[394654135,1763819441925,-1224.0,0.00017394,2]
[394654136,1763819441934,-1227.0,0.00017502,2]
[394654137,1763819441943,-200.0,0.00017515,2]
[394654138,1763819441954,-1224.0,0.00017515,2]
[394654139,1763819441963,-500.0,0.00017533,2]
[394654140,1763819441972,-500.0,0.00017534,2]
[394654141,1763819441981,-642.86,0.00017534,2]
[394654142,1763819441990,-500.0,0.00017534,2]
[394654143,1763819442001,-500.0,0.00017534,2]
[394654144,1763819442010,-500.0,0.00017534,2]
[394654145,1763819442020,-500.0,0.00017534,2]
[394654146,1763819442030,-500.0,0.00017534,2]
[394654147,1763819442040,-500.0,0.00017534,2]
[394654148,1763819442051,-500.0,0.00017534,2]
[394654149,1763819442061,-500.0,0.00017534,2]
[394654150,1763819442071,-500.0,0.00017534,2]
[394654151,1763819442082,-500.0,0.00017534,2]
[394654152,1763819442093,-1118.37,0.00017534,2]
[394654153,1763819442106,-500.0,0.00017534,2]
[394654154,1763819442115,-500.0,0.00017534,2]
[394654155,1763819442125,-1600.0,0.00017563,2]
[394654156,1763819442135,-1224.0,0.00017581,2]
[394654157,1763819442147,-1227.0,0.0001761,2]
[394654158,1763819442156,-1227.0,0.00017611,2]
[394654159,1763819442166,-1128.22612225,0.00017625,2]
[394654160,1763819442175,-566.38026353,0.00017636,2]
[394654161,1763819442185,-200.0,0.0001769,2]
[394654162,1763819442196,-1224.0,0.00017731,2]
[394654163,1763819442206,-500.0,0.00017807,2]
[394654164,1763819442217,-500.0,0.00017808,2]
[394654165,1763819442226,-642.86,0.00017808,2]
[394654166,1763819442236,-500.0,0.00017808,2]
[394654167,1763819442246,-500.0,0.00017808,2]
[394654168,1763819442255,-500.0,0.00017808,2]
[394654169,1763819442265,-500.0,0.00017808,2]
[394654170,1763819442275,-500.0,0.00017808,2]
[394654171,1763819442286,-500.0,0.00017808,2]
[394654172,1763819442295,-500.0,0.00017808,2]
[394654173,1763819442304,-500.0,0.00017808,2]
[394654174,1763819442314,-500.0,0.00017808,2]
[394654175,1763819442325,-500.0,0.00017808,2]
[394654176,1763819442335,-1118.37,0.00017808,2]
[394654177,1763819442345,-500.0,0.00017808,2]
[394654178,1763819442357,-500.0,0.00017808,2]
[394654179,1763819442366,-1224.0,0.00017857,2]
[394654180,1763819442376,-1224.0,0.00017859,2]
[394654181,1763819442386,-1224.0,0.0001788,2]
[394654182,1763819442395,-1224.0,0.00017891,2]
[394654183,1763819442404,-566.38026353,0.000179,2]
[394654184,1763819442414,-1485.14295848,0.000179,2]
[394654185,1763819442423,-1128.22612225,0.000179,2]
[394654186,1763819442434,-500.0,0.00017973,2]
[394654187,1763819442445,-500.0,0.00017973,2]
[394654188,1763819442454,-217.66720646,0.00017999,2]
[394654189,1763819442464,-2782.0,0.00018,2]
[394654190,1763819442474,-1321216.68933517,0.00018,2]
[394654191,1763819442603,-1298.82625658,0.00018,2]
[394654194,1763819446674,-530.35,0.00016438,2]
[394654195,1763819446683,-538.53543281,0.00018,2]
[394654196,1763819446706,-0.02691282,0.00018,2]
[394654197,1763819446717,-2104.12993482,0.00018,2]
[394654198,1763819539719,515.40054593,0.00017,30]
[394654199,1763819541890,500.0,0.00017,30]
[394654200,1763819541944,700.0,0.00017,30]
[394654201,1763819542223,500.0,0.00017,30]
[394654202,1763819542543,500.0,0.000165,30]
[394654203,1763819542875,762.71508512,0.000165,30]
[394654204,1763819549488,937.91646205,0.00017,30]
[394654209,1763820323043,360.2,7.995e-05,2]
[394654210,1763820323255,360.2,8.416e-05,2]
[394654211,1763820323455,360.2,8.836e-05,2]
[394654212,1763820323682,360.2,9.257e-05,2]
[394654213,1763820323922,360.2,9.678e-05,2]
[394654214,1763820324124,360.2,0.00010099,2]
[394654215,1763820324331,360.2,0.00010519,2]
[394654216,1763820324532,360.2,0.0001094,2]
[394654217,1763820324740,360.2,0.00011361,2]
[394654218,1763820324974,360.2,0.00011782,2]
[394654219,1763820325406,360.2,0.00012202,2]
[394654220,1763820325836,360.2,0.00012623,2]
[394654221,1763820326096,360.2,0.00013044,2]
[394654222,1763820326294,360.2,0.00013465,2]
[394654223,1763820326494,360.2,0.00013886,2]
[394654224,1763820326681,360.2,0.00014306,2]
[394654225,1763820326883,360.2,0.00014727,2]
[394654236,1763820631483,-685.541,0.00015031,2]
[394654238,1763820631492,-92.699,0.00015089,2]
[394654241,1763820631541,-207.301,0.00015089,2]
[394654242,1763820631550,-360.2,0.00015148,2]
[394654243,1763820631560,-174.74699686,0.00015185,2]
[394654244,1763820631569,-500.0,0.00015237,2]
[394654245,1763820631580,-300.0,0.00015237,2]
[394654246,1763820631591,-421.77702572,0.00015237,2]
[394654247,1763820631604,-778.22297428,0.00015237,2]
[394654248,1763820631614,-300.0,0.00015237,2]
[394654249,1763820631626,-14330.96055201,0.00015238,2]
[394654250,1763820631638,-517.01695779,0.00015238,2]
[394654251,1763820631650,-16033.86,0.00015238,2]
[394654252,1763820631664,-727.65809693,0.00015238,2]
[394654253,1763820631675,-4250.00000007,0.00015238,2]
[394654254,1763820631685,-9335.42365284,0.00015238,2]
[394654255,1763820631697,-990.97939,0.00015238,2]
[394654256,1763820631723,-784.99999989,0.00015238,2]
[394654257,1763820631735,-928.52587715,0.00015238,2]
[394654380,1763820637476,-3039.84169753,0.00015238,2]
[394654381,1763820637692,-2418.07525,0.00015238,2]
[394654382,1763820637787,-1680.96,0.00015238,2]
[394654383,1763820639642,-287.850498,0.00015238,2]
[394654384,1763820639655,-9312.00532779,0.00015238,2]
[394654385,1763820639666,-566.38026355,0.00015285,2]
[394654386,1763820639675,-1164.23132939,0.00015285,2]
[394654387,1763820639684,-773.00472776,0.00015337,2]
[394654388,1763820639693,-167.94294207,0.00015385,2]
[394654389,1763820639702,-174.74699685,0.00015385,2]
[394654390,1763820639711,-166.66,0.00015485,2]
[394654391,1763820639722,-360.2,0.00015569,2]
[394654392,1763820639732,-500.0,0.00015621,2]
[394654393,1763820639742,-166.66,0.00015811,2]
[394654394,1763820639751,-360.2,0.00015989,2]
[394654395,1763820639761,-166.66,0.00016137,2]
[394654396,1763820639773,-2751.0,0.000163,2]
[394654397,1763820639783,-566.38026353,0.00016353,2]
[394654398,1763820639792,-1164.23132937,0.00016353,2]
[394654399,1763820639801,-500.0,0.00016438,2]
[394654400,1763820639811,-500.0,0.00016438,2]
[394654401,1763820639820,-500.0,0.00016438,2]
[394654402,1763820639829,-500.0,0.00016438,2]
[394654403,1763820639846,-500.0,0.00016438,2]
[394654404,1763820639866,-500.0,0.00016438,2]
[394654405,1763820639876,-500.0,0.00016438,2]
[394654406,1763820639885,-500.0,0.00016438,2]
[394654407,1763820639897,-500.0,0.00016438,2]
[394654408,1763820639906,-500.0,0.00016438,2]
[394654409,1763820639916,-352.23,0.00016438,2]
[394654410,1763820639926,-500.0,0.00016438,2]
[394654411,1763820639935,-500.0,0.00016438,2]
[394654412,1763820639945,-500.0,0.00016438,2]
[394654413,1763820639955,-500.0,0.00016438,2]
[394654414,1763820639966,-500.0,0.00016438,2]
[394654415,1763820639976,-500.0,0.00016438,2]
[394654416,1763820639986,-500.0,0.00016438,2]
[394654418,1763820639996,-500.0,0.00016438,2]
[394654419,1763820640006,-500.0,0.00016438,2]
[394654420,1763820640015,-500.0,0.00016438,2]
[394654421,1763820640024,-500.0,0.00016438,2]
[394654422,1763820640034,-521.78839333,0.00016438,2]
[394654423,1763820640043,-504.1,0.00016438,2]
[394654424,1763820640052,-500.0,0.00016438,2]
[394654425,1763820640061,-527.92,0.00016438,2]
[394654426,1763820640071,-500.0,0.00016438,2]
[394654427,1763820640081,-500.0,0.00016438,2]
[394654428,1763820640090,-500.0,0.00016438,2]
[394654429,1763820640099,-500.0,0.00016438,2]
[394654430,1763820640108,-500.0,0.00016438,2]
[394654431,1763820640117,-500.0,0.00016438,2]
[394654432,1763820640127,-500.0,0.00016438,2]
[394654433,1763820640136,-500.0,0.00016438,2]
[394654434,1763820640145,-500.0,0.00016438,2]
[394654435,1763820640154,-500.0,0.00016438,2]
[394654436,1763820640163,-518.33285801,0.00016438,2]
[394654437,1763820640174,-500.0,0.00016438,2]
[394654438,1763820640187,-500.0,0.00016438,2]
[394654439,1763820640196,-500.0,0.00016438,2]
[394654440,1763820640206,-500.0,0.00016438,2]
[394654441,1763820640216,-588.58,0.00016438,2]
[394654442,1763820640228,-500.0,0.00016438,2]
[394654443,1763820640239,-500.0,0.00016438,2]
[394654444,1763820640248,-500.0,0.00016438,2]
[394654445,1763820640257,-500.0,0.00016438,2]
[394654446,1763820640266,-500.0,0.00016438,2]
[394654447,1763820640275,-500.0,0.00016438,2]
[394654448,1763820640285,-500.0,0.00016438,2]
[394654449,1763820640294,-500.0,0.00016438,2]
[394654450,1763820640303,-500.0,0.00016438,2]
[394654451,1763820640314,-500.0,0.00016438,2]
[394654452,1763820640323,-500.0,0.00016438,2]
[394654453,1763820640332,-500.0,0.00016438,2]
[394654454,1763820640341,-500.0,0.00016438,2]
[394654455,1763820640351,-500.0,0.00016438,2]
[394654456,1763820640360,-500.0,0.00016438,2]
[394654457,1763820640369,-500.0,0.00016438,2]
[394654458,1763820640378,-500.0,0.00016438,2]
[394654459,1763820640389,-500.0,0.00016438,2]
[394654460,1763820640399,-500.0,0.00016438,2]
[394654461,1763820640408,-500.0,0.00016438,2]
[394654462,1763820640417,-500.0,0.00016438,2]
[394654463,1763820640427,-500.0,0.00016438,2]
[394654464,1763820640438,-500.0,0.00016438,2]
[394654465,1763820640448,-500.0,0.00016438,2]
[394654466,1763820640458,-500.0,0.00016438,2]
[394654467,1763820640469,-563.52,0.00016438,2]
[394654468,1763820640479,-500.0,0.00016438,2]
[394654469,1763820640490,-1118.37,0.00016438,2]
[394654470,1763820640500,-500.0,0.00016438,2]
[394654471,1763820640510,-500.0,0.00016438,2]
[394654472,1763820640521,-500.0,0.00016438,2]
[394654473,1763820640532,-642.86,0.00016438,2]
[394654474,1763820640541,-500.0,0.00016438,2]
[394654475,1763820640551,-500.0,0.00016438,2]
[394654476,1763820640562,-201.01,0.00016438,2]
[394654477,1763820640572,-331.77613583,0.00016438,2]
[394654478,1763820640581,-166.66,0.00016463,2]
[394654479,1763820640594,-250.0,0.00016534,2]
[394654480,1763820640605,-250.0,0.00016534,2]
[394654481,1763820640616,-300.0,0.00016534,2]
[394654482,1763820640626,-300.0,0.00016534,2]
[394654483,1763820640638,-300.0,0.00016534,2]
[394654484,1763820640648,-300.0,0.00016534,2]
[394654485,1763820640657,-1823.41517303,0.00016534,3]
[394654486,1763820640669,-250.0,0.00016534,2]
[394654487,1763820640679,-420.0,0.00016672,2]
[394654488,1763820640689,-500.0,0.00016712,2]
[394654489,1763820640699,-500.0,0.00016712,2]
[394654490,1763820640709,-500.0,0.00016712,2]
[394654491,1763820640721,-500.0,0.00016712,2]
[394654492,1763820640731,-500.0,0.00016712,2]
[394654493,1763820640742,-500.0,0.00016712,2]
[394654494,1763820640752,-500.0,0.00016712,2]
[394654495,1763820640763,-500.0,0.00016712,2]
[394654496,1763820640775,-507.149334,0.00016712,2]
[394654497,1763820640785,-500.0,0.00016712,2]
[394654498,1763820640795,-352.23,0.00016712,2]
[394654499,1763820640805,-190.41,0.00016712,2]
[394654500,1763820640815,-306.78,0.00016712,2]
[394654501,1763820640824,-150.48,0.00016712,2]
[394654502,1763820640835,-500.0,0.00016712,2]
[394654503,1763820640845,-500.0,0.00016712,2]
[394654504,1763820640854,-500.0,0.00016712,2]
[394654505,1763820640864,-253.02,0.00016712,2]
[394654506,1763820640874,-500.0,0.00016712,2]
[394654507,1763820640883,-500.0,0.00016712,2]
[394654508,1763820640892,-500.0,0.00016712,2]
[394654509,1763820640902,-500.0,0.00016712,2]
[394654510,1763820640911,-500.0,0.00016712,2]
[394654511,1763820640921,-500.0,0.00016712,2]
[394654512,1763820640930,-259.94737467,0.00016712,2]
[394654513,1763820640939,-500.0,0.00016712,2]
[394654514,1763820640948,-500.0,0.00016712,2]
[394654515,1763820640957,-500.0,0.00016712,2]
[394654516,1763820640966,-500.0,0.00016712,2]
[394654517,1763820640975,-500.0,0.00016712,2]
[394654518,1763820640984,-1118.37,0.00016712,2]
[394654519,1763820640993,-500.0,0.00016712,2]
[394654520,1763820641003,-150.08,0.00016712,2]
[394654521,1763820641012,-500.0,0.00016712,2]
[394654522,1763820641021,-642.86,0.00016712,2]
[394654523,1763820641030,-500.0,0.00016712,2]
[394654524,1763820641040,-500.0,0.00016712,2]
[394654525,1763820641049,-166.66,0.00016789,2]
[394654526,1763820641059,-229.55,0.00016908,2]
[394654527,1763820641068,-500.80437399,0.00016986,2]
[394654528,1763820641077,-500.0,0.00016986,2]
[394654529,1763820641086,-500.0,0.00016986,2]
[394654530,1763820641096,-500.0,0.00016986,2]
[394654531,1763820641105,-500.0,0.00016986,2]
[394654532,1763820641114,-500.0,0.00016986,2]
[394654533,1763820641123,-500.0,0.00016986,2]
[394654534,1763820641131,-500.0,0.00016986,2]
[394654535,1763820641140,-352.23,0.00016986,2]
[394654536,1763820641149,-546.30951378,0.00016986,2]
[394654537,1763820641157,-500.0,0.00016986,2]
[394654538,1763820641166,-500.0,0.00016986,2]
[394654539,1763820641175,-500.0,0.00016986,2]
[394654540,1763820641184,-339.63191572,0.00016986,2]
[394654541,1763820641193,-500.0,0.00016986,2]
[394654542,1763820641202,-482.39,0.00016986,2]
[394654543,1763820641211,-500.0,0.00016986,2]
[394654544,1763820641220,-195.4114097,0.00016986,2]
[394654545,1763820641229,-546.65888768,0.00016986,2]
[394654546,1763820641238,-500.0,0.00016986,2]
[394654547,1763820641247,-500.0,0.00016986,2]
[394654548,1763820641256,-500.0,0.00016986,2]
[394654549,1763820641266,-1118.37,0.00016986,2]
[394654550,1763820641275,-333.0,0.00016986,2]
[394654551,1763820641284,-500.0,0.00016986,2]
[394654552,1763820641293,-642.86,0.00016986,2]
[394654553,1763820641302,-500.0,0.00016986,2]
[394654554,1763820641311,-500.0,0.00016986,2]
[394654555,1763820641320,-2000.0,0.00017,2]
[394654556,1763820641329,-1000.0,0.00017,2]
[394654557,1763820641338,-1852.42,0.00017022,2]
[394654558,1763820641348,-250.0,0.00017099,2]
[394654559,1763820641357,-166.66,0.00017115,2]
[394654560,1763820641366,-500.0,0.0001726,2]